fUSD/lending_fUSD_20240827
["ID","MTS","AMOUNT","RATE_DAILY","PERIOD"]
[336207678,1724737832400,-756.03810701,0.000101,5]
[336207679,1724737832411,-1182.71091713,0.000101,5]
[336207680,1724737832497,-2047.29164152,0.000101,5]
[336207681,1724737832510,-953.4260579,0.000101,5]
[336207774,1724737838450,-800.0,0.000101,3]
[336207775,1724737838459,-2479.54877098,0.000101,5]
[336207776,1724737838615,-349.20170717,0.000101,5]
[336207777,1724737838727,-3125.24952185,0.000101,5]
[336207778,1724737838737,-1200.0,0.000102,3]
[336207779,1724737838746,-531.76,0.000103,2]
[336207780,1724737838756,-427.02,0.000103,2]
[336207781,1724737838767,-357.05,0.000103,2]
[336207782,1724737838776,-532.22,0.000103,2]
[336207783,1724737838785,-427.02,0.000103,2]
[336207784,1724737838796,-150.0,0.000103,2]
[336207785,1724737838805,-357.28,0.000103,2]
[336207786,1724737838815,-1063.24,0.000103,2]
[336207787,1724737838824,-357.05,0.000103,2]
[336207788,1724737838834,-421.55,0.000103,2]
[336207789,1724737838843,-791.12,0.000103,2]
[336207790,1724737838852,-531.71,0.000103,2]
[336207791,1724737838861,-531.76,0.000103,2]
[336207792,1724737838871,-357.05,0.000103,2]
[336207793,1724737838880,-1014.78,0.000103,2]
[336207794,1724737838889,-357.05,0.000103,2]
[336207795,1724737838899,-357.05,0.000103,2]
[336207796,1724737838908,-1600.0,0.000103,3]
[336207797,1724737838917,-40217.44,0.000103,2]
[336207798,1724737838927,-531.76,0.000104,2]
[336207799,1724737838936,-1689.95,0.000104,2]
[336207800,1724737838945,-2000.0,0.000104,3]
[336207802,1724737838954,-312.56,0.00010463,2]
[336207805,1724737838964,-400.0,0.000105,3]
[336207808,1724737838973,-150.0,0.00010543,2]
[336207810,1724737838983,-150.0,0.00010549,2]
[336207814,1724737838992,-400.0,0.000106,3]
[336207815,1724737839001,-151.04341644,0.00010607,2]
[336207817,1724737839010,-150.0,0.00010616,2]
[336207820,1724737839024,-150.0,0.00010623,2]
[336207823,1724737839033,-150.0,0.00010638,2]
[336207826,1724737839042,-150.0,0.00010639,2]
[336207829,1724737839051,-1500.0,0.0001064,2]
[336207832,1724737839059,-150.0,0.0001065,2]
[336207835,1724737839069,-152.33213595,0.00010674,2]
[336207838,1724737839078,-440.74622,0.0001069,2]
[336207840,1724737839087,-26182.71491434,0.00010698,2]
[336207842,1724737839097,-215.3767,0.00010699,2]
[336207844,1724737839107,-9550.6013,0.000107,2]
[336207846,1724737839116,-45705.9531,0.000107,2]
[336207848,1724737839130,-2469.3522,0.000107,2]
[336207851,1724737839145,-400.0,0.000107,3]
[336207853,1724737839158,-350.60174226,0.000107,2]
[336207855,1724737839170,-150.0,0.00010709,2]
[336207857,1724737839180,-150.0,0.00010712,2]
[336207860,1724737839193,-150.0,0.00010721,2]
[336207862,1724737839206,-150.0,0.00010736,2]
[336207865,1724737839218,-5278.7746,0.00010767,2]
[336207867,1724737839231,-152.31,0.0001079,2]
[336207869,1724737839244,-150.0,0.00010797,2]
[336207872,1724737839257,-138663.1805297,0.00010799,2]
[336207874,1724737839270,-507.0,0.000108,2]
[336207877,1724737839284,-108777.18719796,0.000108,2]
[336207879,1724737839298,-16932.32639603,0.000108,2]
[336207882,1724737839318,-4509.7,0.000108,2]
[336208005,1724737840479,-1156.2,0.000108,2]
[336208008,1724737840494,-2689.99555988,0.000108,2]
[336208010,1724737840508,-333.81892786,0.000108,2]
[336208019,1724737840580,-809.98464829,0.000108,2]
[336208021,1724737840595,-6327.7,0.000108,2]
[336208025,1724737840623,-322.50000001,0.000108,2]
[336208227,1724737843154,-308898.56655279,0.000108,2]
[336208228,1724737843165,-1029.97963054,0.000108,2]
[336208279,1724737843647,-3047.90218632,0.000108,2]
[336208556,1724737846438,-180488.21067163,0.000108,2]
[336208562,1724737846533,-3047.70344508,0.000108,2]
[336208575,1724737846651,-3518.04920049,0.000108,2]
[336210328,1724737869809,156.42,7.234e-05,2]
[336210329,1724737912679,500.0,8.464e-05,2]
[336210330,1724737914478,500.0,8.22e-05,2]
[336210331,1724737914707,500.0,9.834e-05,2]
[336210332,1724737950039,600.0,8.464e-05,2]
[336210333,1724737951305,600.0,9.834e-05,2]
[336210334,1724737951745,500.0,8.22e-05,2]
[336210335,1724737953329,500.0,9.59e-05,2]
[336210336,1724737958440,2016.54089183,0.0001,2]
[336210337,1724738029940,186.68,9.913e-05,2]
[336210338,1724738042640,258.61443135,0.0001,4]
[336210341,1724738128951,312.13,8.219e-05,2]
[336210342,1724738176355,840.0,9.922e-05,2]
[336210343,1724738214924,277.54,9.926e-05,2]
[336210344,1724738395184,500.0,8.464e-05,2]
[336210345,1724738396770,500.0,9.834e-05,2]
[336210346,1724738402817,152.06165471,9.834e-05,2]
[336210347,1724738408474,2345.00323908,9.999e-05,2]
[336210348,1724738421816,500.0,8.464e-05,2]
[336210349,1724738423424,500.0,9.834e-05,2]
[336210350,1724738607479,296.52,8.219e-05,2]
[336210351,1724738619863,325.33,9.89e-05,2]
[336210352,1724738632518,348.62432764,9.999e-05,2]
[336210353,1724738647424,348.62432764,9.999e-05,2]
[336210354,1724738652224,328.0,9.895e-05,2]
[336210355,1724738697836,408.33137705,9.999e-05,2]
[336210356,1724738740728,150.38086,9.899e-05,2]
[336210357,1724738749689,150.0,9.899e-05,2]
[336210358,1724738766018,152.27895,9.899e-05,2]
[336210361,1724738858039,155.0,9.999e-05,2]
[336210375,1724738996856,932.02948162,9.999e-05,2]
[336210394,1724739031417,-249.7163439,0.00010009,2]
[336210396,1724739031427,-827.53805246,0.00010026,2]
[336210398,1724739031437,-235.90681971,0.0001047,2]
[336210400,1724739031449,-60.61318029,0.0001047,2]
[336210401,1724739031459,-804.80031361,0.00010471,2]
[336210402,1724739031471,-1444.60455856,0.00010471,2]
[336210403,1724739031539,-1282.02818207,0.00010471,2]
[336210404,1724739031550,-556.26670477,0.00010471,2]
[336210405,1724739031562,-415.98592689,0.00010471,2]
[336210406,1724739031574,-353.70324838,0.00010471,2]
[336210407,1724739031589,-5530.51723118,0.00010471,2]
[336210408,1724739031600,-911.46,0.00010471,2]
[336210409,1724739031612,-854.80884198,0.00010471,2]
[336210410,1724739031628,-857.30470671,0.00010471,2]
[336210411,1724739031640,-4285.36131967,0.00010471,2]
[336210412,1724739031651,-280.81833347,0.00010471,2]
[336210413,1724739031664,-2808.07844217,0.00010471,2]
[336210414,1724739031686,-5387.38691664,0.00010471,2]
[336210415,1724739031695,-173.873026,0.00010485,2]
[336210416,1724739031704,-440.74623,0.0001069,2]
[336210417,1724739031713,-440.74623,0.000107,2]
[336210418,1724739031723,-350.60174226,0.000107,2]
[336210419,1724739031732,-165.05154592,0.00010738,2]
[336210420,1724739031743,-440.74623,0.0001074,2]
[336210421,1724739031754,-712.94070479,0.00010778,2]
[336210422,1724739037521,-590.40179249,0.00010026,2]
[336210423,1724739037532,-123.19630056,0.00010778,2]
[336210424,1724739037543,-399.63233745,0.00010778,2]
[336210425,1724739037587,-1185.14145906,0.00010778,2]
[336210426,1724739037598,-290.08119832,0.00010778,2]
[336210427,1724739037610,-9059.29733584,0.00010778,2]
[336210428,1724739037655,-463.4202856,0.00010778,2]
[336210429,1724739037669,-356.64605116,0.00010778,2]
[336210430,1724739037681,-13552.17793519,0.00010778,2]
[336210431,1724739037769,-2977.32631438,0.00010778,2]
[336210432,1724739037781,-880.14007765,0.00010778,2]
[336210433,1724739037790,-440.74623,0.0001078,2]
[336210434,1724739037800,-150.0,0.00010797,2]
[336210435,1724739037810,-150.0,0.00010797,2]
[336210436,1724739037819,-150.0,0.00010797,2]
[336210437,1724739037829,-150.0,0.00010797,2]
[336210438,1724739037838,-150.0,0.00010797,2]
[336210439,1724739037848,-150.0,0.00010798,2]
[336210440,1724739037858,-150.0,0.00010798,2]
[336210441,1724739037867,-150.0,0.00010798,2]
[336210442,1724739037876,-150.0,0.00010798,2]
[336210443,1724739037886,-150.0,0.00010798,2]
[336210444,1724739037895,-15271.24493478,0.00010798,2]
[336210446,1724739037907,-6057.23386798,0.00010798,2]
[336210449,1724739037919,-6423.55219289,0.00010798,2]
[336210451,1724739037929,-739.43286019,0.00010799,2]
[336210453,1724739037938,-1000.0,0.00010799,2]
[336210455,1724739037948,-1000.0,0.00010799,2]
[336210457,1724739037957,-295.09377527,0.00010799,2]
[336210459,1724739037967,-6613.37688288,0.000108,2]
[336210461,1724739037978,-27604.04831325,0.000108,2]
[336210463,1724739037990,-22243.24876,0.000108,2]
[336210465,1724739038002,-44513.43434642,0.000108,2]
[336210467,1724739038013,-531.96974346,0.000108,2]
[336210469,1724739038024,-3924.48223149,0.000108,2]
[336210623,1724739039505,-617.95680359,0.000108,2]
[336210636,1724739039631,-1596.88006637,0.000108,2]
[336210638,1724739039642,-2327.8579357,0.000108,2]
[336210640,1724739039655,-340.78144659,0.000108,2]
[336210644,1724739039686,-1668.94830626,0.000108,2]
[336210651,1724739039748,-561.97850452,0.000108,2]
[336210652,1724739039760,-2371.47496843,0.000108,2]
[336210653,1724739039865,-789.49745443,0.000108,2]
[336210654,1724739039926,-9096.64373114,0.000108,2]
[336210655,1724739039938,-5966.96109473,0.000108,2]
[336210656,1724739039950,-8943.78386462,0.000108,2]
[336210658,1724739039962,-9077.54866152,0.000108,2]
[336210660,1724739039974,-8943.84023489,0.000108,2]
[336210963,1724739043115,-1095.78215054,0.000108,2]
[336210971,1724739043180,-23521.76724492,0.000108,2]
[336210982,1724739043303,-100582.07090104,0.000108,2]
[336210988,1724739043365,-18902.79303742,0.000108,2]
[336210995,1724739043428,-2581.2614539,0.000108,2]
[336211197,1724739045595,-561.97888359,0.000108,2]
[336213829,1724739116687,500.0,8.464e-05,2]
[336213830,1724739118788,500.0,9.834e-05,2]
[336213831,1724739128153,307.98,8.219e-05,2]
[336213832,1724739164958,174.67,9.969e-05,2]
[336213833,1724739189578,500.0,8.22e-05,2]
[336213834,1724739191160,500.0,9.59e-05,2]
[336213835,1724739207196,500.0,8.464e-05,2]
[336213836,1724739208785,500.0,9.834e-05,2]
[336213837,1724739273579,1000.0,9.922e-05,2]
[336213838,1724739301688,1144.09738342,0.00015,120]
[336213839,1724739425474,2540.88,9.927e-05,2]
[336213840,1724739455381,927.67,9.932e-05,2]
[336213841,1724739574512,9257.12,9.911e-05,2]
[336213842,1724739633244,292.58,8.219e-05,2]
[336213843,1724739660503,1293.43,9.937e-05,2]
[336213844,1724739667798,174.67,9.92e-05,2]
[336213845,1724739715811,200.0,9.925e-05,2]
[336213846,1724739721556,500.0,8.464e-05,2]
[336213847,1724739723177,500.0,9.834e-05,2]
[336213848,1724739741403,500.0,8.464e-05,2]
[336213849,1724739751683,663.13,9.932e-05,2]
[336213850,1724739769053,500.0,8.464e-05,2]
[336213851,1724739769291,500.0,8.22e-05,2]
[336213852,1724739770782,500.0,9.834e-05,2]
[336213853,1724739802031,184.13887821,9.999e-05,2]
[336213854,1724739807336,500.0,8.22e-05,2]
[336213855,1724739869317,1276.46550139,9.963e-05,2]
[336213856,1724739880841,1000.0,9.935e-05,2]
[336213857,1724739881434,2257.78198603,9.963e-05,2]
[336213858,1724739906643,408.33137705,9.999e-05,2]
[336213859,1724739924163,2100.0,0.0001,2]
[336213865,1724739966254,7469.9757,9.924e-05,2]
[336213866,1724739971811,341.25138439,0.0001,4]
[336213936,1724740075328,1330.14743102,0.0001,2]
[336213944,1724740125404,-2650.0,0.000123,30]
[336213945,1724740125433,-3558.51,0.000129,31]
[336213946,1724740125458,-3558.51,0.000129,31]
[336213947,1724740125482,-3558.51,0.000129,31]
[336213948,1724740125507,-3558.51,0.000129,31]
[336213949,1724740125532,-3558.51,0.000129,31]
[336213950,1724740125557,-3558.51,0.000129,31]
[336213951,1724740125581,-3558.51,0.000129,31]
[336213952,1724740125605,-3558.51,0.000129,31]
[336213953,1724740125629,-3558.51,0.000129,31]
[336213954,1724740125656,-3558.51,0.000129,31]
[336213955,1724740125681,-3558.51,0.000129,31]
[336213956,1724740125706,-3558.51,0.000129,31]
[336213957,1724740125733,-3558.51,0.000129,31]
[336213958,1724740125760,-3558.51,0.000129,31]
[336213959,1724740125785,-3558.51,0.000129,31]
[336213960,1724740125818,-3558.51,0.000129,31]
[336213961,1724740125851,-150.0,0.0001519,120]
[336213962,1724740125875,-150.0,0.00015222,120]
[336213963,1724740125898,-150.0,0.00015338,120]
[336213964,1724740125922,-150.0,0.00015418,120]
[336213965,1724740125948,-150.0,0.00016019,120]
[336213966,1724740125972,-150.0,0.00016113,120]
[336213967,1724740125999,-150.0,0.0001671,120]
[336213968,1724740126023,-150.0,0.00016837,120]
[336213969,1724740126049,-150.0,0.00017026,120]
[336213970,1724740126077,-150.0,0.00017293,120]
[336213971,1724740126104,-150.0,0.00017523,120]
[336213972,1724740126129,-300.18,0.0001779,120]
[336213973,1724740126155,-150.5,0.00017798,120]
[336213974,1724740126180,-667.06663495,0.00018,30]
[336213975,1724740126207,-3558.51,0.000181,31]
[336213976,1724740126236,-3558.51,0.000181,31]
[336213977,1724740126262,-3558.51,0.000181,31]
[336213978,1724740126288,-3558.51,0.000181,31]
[336213979,1724740126316,-3558.51,0.000181,31]
[336213980,1724740126342,-3558.51,0.000181,31]
[336213981,1724740126368,-3558.51,0.000181,31]
[336213982,1724740126394,-3558.51,0.000181,31]
[336213983,1724740126419,-3558.51,0.000181,31]
[336213984,1724740126445,-3558.51,0.000181,31]
[336213985,1724740126471,-3558.51,0.000181,31]
[336213986,1724740126497,-3558.51,0.000181,31]
[336213987,1724740126522,-3558.51,0.000181,31]
[336213988,1724740126550,-3558.51,0.000181,31]
[336213989,1724740126575,-3558.51,0.000181,31]
[336213990,1724740126600,-3558.51,0.000181,31]
[336213991,1724740126625,-3558.51,0.000181,31]
[336213992,1724740126654,-3558.51,0.000181,31]
[336213993,1724740126680,-3558.51,0.000181,31]
[336213994,1724740126706,-3558.51,0.000181,31]
[336213995,1724740126732,-3558.51,0.000181,31]
[336213996,1724740126913,-3558.51,0.000181,31]
[336213997,1724740126939,-3558.51,0.000181,31]
[336213998,1724740126963,-3558.51,0.000181,31]
[336213999,1724740126987,-150.0,0.000182,120]
[336214000,1724740127011,-150.0,0.00018206,120]
[336214001,1724740127037,-150.0,0.00018418,120]
[336214002,1724740127062,-150.0,0.00018615,120]
[336214003,1724740127090,-150.0,0.00018754,120]
[336214004,1724740127115,-2000.0,0.00018787,31]
[336214005,1724740127138,-150.0,0.00018808,120]
[336214006,1724740127165,-150.0,0.00018919,120]
[336214007,1724740127190,-150.0,0.00019006,120]
[336214008,1724740127218,-150.0,0.00019308,120]
[336214009,1724740127245,-150.0,0.0001937,120]
[336214010,1724740127271,-150.0,0.00019446,120]
[336214011,1724740127296,-150.0,0.00019567,120]
[336214012,1724740127322,-150.0,0.00019586,120]
[336214013,1724740127348,-150.0,0.00019842,120]
[336214014,1724740127372,-150.0,0.0001986,120]
[336214015,1724740127398,-711.8196299,0.0002,30]
[336214016,1724740127421,-2110.0,0.0002,30]
[336214017,1724740127445,-4500.0,0.0002,30]
[336214018,1724740127471,-150.0,0.00020111,120]
[336214019,1724740127494,-150.0,0.00020133,120]
[336214020,1724740127520,-150.0,0.00020349,120]
[336214021,1724740127546,-150.0,0.00020416,120]
[336214022,1724740127572,-150.0,0.00020498,120]
[336214023,1724740127598,-2110.0,0.000205,30]
[336214024,1724740127624,-150.0,0.00020613,120]
[336214025,1724740127650,-150.0,0.00020662,120]
[336214026,1724740127676,-150.0,0.00020851,120]
[336214027,1724740127700,-280.1626906,0.00020919,40]
[336214028,1724740127724,-150.0,0.00020966,120]
[336214029,1724740127748,-250.0,0.00021,30]
[336214030,1724740127773,-239.42763264,0.00021,30]
[336214031,1724740127797,-2110.0,0.00021,30]
[336214032,1724740127823,-2110.0,0.000215,30]
[336214033,1724740127849,-150.0,0.00021586,120]
[336214034,1724740127874,-2331.17,0.00021589,30]
[336214035,1724740127897,-150.0,0.00021733,120]
[336214036,1724740127920,-150.0,0.00021766,120]
[336214037,1724740127945,-150.0,0.00021915,120]
[336214038,1724740127973,-1000.0,0.00021918,30]
[336214039,1724740128001,-150.0,0.00021975,120]
[336214040,1724740128024,-2110.0,0.00022,30]
[336214041,1724740128049,-1000.0,0.00022156,30]
[336214042,1724740128078,-150.0,0.00022173,120]
[336214043,1724740128102,-150.0,0.00022242,120]
[336214044,1724740128127,-150.0,0.0002227,120]
[336214045,1724740128154,-150.0,0.00022383,120]
[336214046,1724740128179,-1000.0,0.00022394,30]
[336214047,1724740128203,-150.0,0.00022444,120]
[336214048,1724740128228,-2110.0,0.000225,30]
[336214049,1724740128252,-1000.0,0.00022633,30]
[336214050,1724740128276,-150.0,0.00022806,120]
[336214051,1724740128300,-1000.0,0.00022871,30]
[336214052,1724740128324,-150.0,0.0002288,120]
[336214053,1724740128348,-2110.0,0.00023,30]
[336214054,1724740128372,-26959.95938202,0.00023,120]
[336214055,1724740128397,-1000.0,0.00023109,30]
[336214056,1724740128421,-150.0,0.00023118,120]
[336214057,1724740128447,-3558.51,0.000232,31]
[336214058,1724740128473,-3558.51,0.000232,31]
[336214059,1724740128499,-3558.51,0.000232,31]
[336214060,1724740128525,-3558.51,0.000232,31]
[336214061,1724740128550,-3558.51,0.000232,31]
[336214062,1724740128576,-3558.51,0.000232,31]
[336214063,1724740128602,-3558.51,0.000232,31]
[336214064,1724740128627,-3558.51,0.000232,31]
[336214065,1724740128657,-3558.51,0.000232,31]
[336214066,1724740128683,-3558.51,0.000232,31]
[336214067,1724740128708,-3558.51,0.000232,31]
[336214068,1724740128733,-3558.51,0.000232,31]
[336214069,1724740128758,-3558.51,0.000232,31]
[336214070,1724740128785,-3558.51,0.000232,31]
[336214071,1724740128810,-3558.51,0.000232,31]
[336214072,1724740128836,-3558.51,0.000232,31]
[336214073,1724740128862,-3558.51,0.000232,31]
[336214074,1724740128890,-3558.51,0.000232,31]
[336214075,1724740128919,-3558.51,0.000232,31]
[336214076,1724740128946,-3558.51,0.000232,31]
[336214077,1724740128973,-3558.51,0.000232,31]
[336214078,1724740129001,-3558.51,0.000232,31]
[336214079,1724740129028,-3558.51,0.000232,31]
[336214080,1724740129057,-3558.51,0.000232,31]
[336214081,1724740129236,-1000.0,0.00023347,30]
[336214082,1724740129261,-150.0,0.00023384,120]
[336214083,1724740129287,-150.0,0.00023459,120]
[336214084,1724740129312,-2110.0,0.000235,30]
[336214085,1724740129336,-1000.0,0.00023585,30]
[336214086,1724740129360,-1000.0,0.00023824,30]
[336214087,1724740129385,-150.0,0.00023829,120]
[336214088,1724740129410,-150.0,0.0002387,120]
[336214089,1724740129434,-150.0,0.00023887,120]
[336214090,1724740129459,-2404.70521763,0.00024,30]
[336214091,1724740129483,-2110.0,0.00024,30]
[336214092,1724740129506,-300.0,0.00024,30]
[336214093,1724740129530,-664.4,0.00024,120]
[336214094,1724740129559,-1000.0,0.00024062,30]
[336214095,1724740129592,-150.0,0.00024074,120]
[336214096,1724740129617,-1000.0,0.000243,30]
[336214097,1724740129641,-150.0,0.00024393,120]
[336214098,1724740129665,-500.0,0.000244,120]
[336214099,1724740129688,-150.0,0.00024401,120]
[336214100,1724740129713,-150.0,0.00024492,120]
[336214101,1724740129737,-2110.0,0.000245,30]
[336214102,1724740129761,-1000.0,0.00024538,30]
[336214103,1724740129787,-2000.0,0.00024657,120]
[336214104,1724740129823,-2000.0,0.00024657,120]
[336214105,1724740129848,-2006.26328897,0.00024657,120]
[336214106,1724740129873,-18808.031458,0.0002466,90]
[336214107,1724740129898,-2000.0,0.00024748,45]
[336214108,1724740129923,-2331.17,0.0002475,30]
[336214109,1724740129947,-1000.0,0.00024777,30]
[336214110,1724740129972,-150.0,0.00024879,120]
[336214111,1724740129995,-5000.0,0.0002488,31]
[336214112,1724740130020,-521.705,0.00024931,60]
[336214113,1724740130043,-500.0,0.00024931,60]
[336214114,1724740130073,-500.0,0.00024932,120]
[336214115,1724740130101,-150.0,0.0002498,120]
[336214116,1724740130126,-150.0,0.0002499,120]
[336214117,1724740130155,-2326.25453473,0.00025,30]
[336214118,1724740130180,-2100.0,0.00025,30]
[336214119,1724740130203,-219.6,0.00025,30]
[336214120,1724740130227,-1069.32231515,0.00025,90]
[336214121,1724740130251,-500.0,0.00025,60]
[336214122,1724740130275,-500.0,0.00025,60]
[336214123,1724740130298,-1224.05,0.00025,30]
[336214124,1724740130321,-765.0,0.00025,120]
[336214125,1724740130344,-450.0,0.00025,30]
[336214126,1724740130367,-746.71,0.00025,120]
[336214127,1724740130391,-1000.0,0.00025015,30]
[336214128,1724740130415,-150.0,0.00025061,120]
[336214129,1724740130439,-150.0,0.00025066,120]
[336214130,1724740130462,-515.265016,0.00025072,120]
[336214131,1724740130485,-298.969514,0.00025072,120]
[336214132,1724740130510,-150.0,0.00025089,120]
[336214133,1724740130534,-150.0,0.00025107,120]
[336214134,1724740130558,-150.0,0.00025172,120]
[336214135,1724740130582,-1000.0,0.00025253,30]
[336214136,1724740130606,-150.0,0.00025338,120]
[336214137,1724740130630,-150.0,0.00025491,120]
[336214138,1724740130656,-1000.0,0.00025491,30]
[336214139,1724740130680,-150.0,0.00025537,120]
[336214140,1724740130705,-150.0,0.00025615,120]
[336214141,1724740130729,-150.0,0.0002569,120]
[336214142,1724740130753,-1000.0,0.0002573,30]
[336214143,1724740130776,-1000.0,0.00025968,30]
[336214144,1724740130800,-150.0,0.00025979,120]
[336214145,1724740130823,-347.40406956,0.00026,120]
[336214146,1724740130847,-3000.0,0.00026,60]
[336214147,1724740130870,-151.486243,0.00026072,120]
[336214148,1724740130894,-150.0,0.00026101,120]
[336214149,1724740130918,-1000.0,0.00026206,30]
[336214150,1724740130941,-150.0,0.00026213,120]
[336214151,1724740130964,-150.0,0.0002622,120]
[336214152,1724740130988,-150.0,0.00026377,120]
[336214153,1724740131012,-150.0,0.00026406,120]
[336214154,1724740131036,-1000.0,0.00026444,30]
[336214155,1724740131065,-150.0,0.0002663,120]
[336214156,1724740131089,-150.0,0.00026632,120]
[336214157,1724740131114,-1000.0,0.00026683,30]
[336214158,1724740131139,-2000.0,0.00026849,120]
[336214159,1724740131163,-2000.0,0.00026849,120]
[336214160,1724740131187,-150.0,0.00026864,120]
[336214161,1724740131210,-1000.0,0.00026921,30]
[336214162,1724740131233,-150.0,0.00026925,120]
[336214163,1724740131257,-2061501.09584025,0.00027,30]
[336214164,1724740131282,-331.68003473,0.00027,120]
[336214165,1724740131305,-468.85604932,0.00027,120]
[336214166,1724740131328,-645.86,0.00027,120]
[336214167,1724740131350,-500.0,0.00027,120]
[336214168,1724740131372,-20787.08271234,0.00027,120]
[336214169,1724740131396,-150.0,0.00027039,120]
[336214170,1724740131419,-150.0,0.00027089,120]
[336214171,1724740131443,-1000.0,0.00027159,30]
[336214172,1724740131465,-150.0,0.00027269,120]
[336214173,1724740131615,-199.02799706,0.0002736,120]
[336214174,1724740131652,-2000.0,0.00027397,30]
[336214175,1724740131678,-2000.0,0.00027397,30]
[336214176,1724740131701,-2000.0,0.00027397,30]
[336214177,1724740131724,-2000.0,0.00027397,30]
[336214178,1724740131750,-2000.0,0.00027397,30]
[336214179,1724740131772,-2000.0,0.00027397,30]
[336214180,1724740131794,-2000.0,0.00027397,30]
[336214181,1724740131816,-2000.0,0.00027397,30]
[336214182,1724740131839,-2000.0,0.00027397,30]
[336214183,1724740131861,-2000.0,0.00027397,30]
[336214184,1724740131884,-2000.0,0.00027397,30]
[336214185,1724740131908,-2000.0,0.00027397,30]
[336214186,1724740131932,-2000.0,0.00027397,30]
[336214187,1724740131956,-2000.0,0.00027397,30]
[336214188,1724740131979,-2000.0,0.00027397,30]
[336214189,1724740132003,-2000.0,0.00027397,30]
[336214190,1724740132027,-2000.0,0.00027397,30]
[336214191,1724740132051,-2000.0,0.00027397,30]
[336214192,1724740132084,-2000.0,0.00027397,30]
[336214193,1724740132108,-953.20641163,0.00027397,30]
[336214194,1724740132133,-200.0,0.00027397,60]
[336214195,1724740132163,-1991.65266115,0.00027397,30]
[336214196,1724740132189,-150.0,0.00027578,120]
[336214197,1724740132214,-150.0,0.00027707,120]
[336214198,1724740132239,-2331.17,0.00027912,30]
[336214199,1724740132263,-2000.0,0.00028,90]
[336214200,1724740132288,-514.0,0.00028,120]
[336214201,1724740132320,-150.0,0.00028115,120]
[336214202,1724740132345,-150.0,0.00028153,120]
[336214203,1724740132370,-150.0,0.0002816,120]
[336214204,1724740132394,-150.0,0.00028261,120]
[336214205,1724740132420,-150.0,0.00028333,120]
[336214206,1724740132447,-3558.51,0.000284,31]
[336214207,1724740132474,-3558.51,0.000284,31]
[336214208,1724740132500,-3558.51,0.000284,31]
[336214209,1724740132525,-3558.51,0.000284,31]
[336214210,1724740132550,-3558.51,0.000284,31]
[336214211,1724740132579,-3558.51,0.000284,31]
[336214212,1724740132606,-3558.51,0.000284,31]
[336214213,1724740132632,-3558.51,0.000284,31]
[336214214,1724740132661,-3558.51,0.000284,31]
[336214215,1724740132689,-3558.51,0.000284,31]
[336214216,1724740132715,-3558.51,0.000284,31]
[336214217,1724740132744,-3558.51,0.000284,31]
[336214218,1724740132772,-3558.51,0.000284,31]
[336214219,1724740132807,-3558.51,0.000284,31]
[336214220,1724740132843,-3558.51,0.000284,31]
[336214221,1724740132881,-3558.51,0.000284,31]
[336214222,1724740132919,-3558.51,0.000284,31]
[336214224,1724740132960,-3558.51,0.000284,31]